bitfinex/quotes_ETHUSD_20251017
["timestamp","ask_amount","ask_price","bid_price","bid_amount"]
[1760721230696,0.51878703,3806.1,3805.4,2.62778587]
[1760721230697,0.1551,3805.7,3805.4,2.62778587]
[1760721230871,0.1551,3805.7,3804.9,0.001]
[1760721231584,0.1551,3805.7,3805.3,2.62791369]
[1760721231779,0.2552,3805.7,3804.9,2.62912876]
[1760721231994,0.54347654,3805.7,3804.9,2.62912939]
[1760721232295,0.54347654,3805.7,3805.1,2.6280131]
[1760721232494,0.48917781,3805.7,3804.9,0.001]
[1760721232698,0.04580127,3805.7,3804.9,2.62914923]
[1760721232896,0.04580127,3805.7,3805.5,2.62771364]
[1760721233303,0.04580127,3805.7,3805.3,2.62790144]
[1760721233500,0.04580127,3805.7,3805.4,2.62782105]
[1760721233704,0.04580127,3805.7,3805.4,2.62782235]
[1760721233997,0.04580127,3805.7,3804.9,0.001]
[1760721234380,0.04580127,3805.7,3805.5,2.62774455]
[1760721234581,0.04580127,3805.7,3805.6,2.62770653]
[1760721234973,2.62700677,3806.7,3805.5,0.01303765]
[1760721235172,0.0457961,3806.2,3805.9,2.62743852]
[1760721235503,0.0457961,3806.2,3806.1,2.62736134]
[1760721235685,2.78258256,3806.8,3806.1,2.62736134]
[1760721235891,1.728,3806.7,3806.1,2.62736134]
[1760721236194,1.728,3806.3,3805.2,0.2178]
[1760721236395,0.099,3806.4,3805.2,2.84574342]
[1760721236591,0.099,3806.4,3805.8,2.62750823]
[1760721236901,0.1312,3806.0,3805.9,2.6274994]
[1760721237805,0.1312,3806.0,3805.1,2.62804266]
[1760721238006,0.1312,3806.0,3805.2,0.68]
[1760721238373,0.1312,3806.0,3805.9,2.6274994]
[1760721239904,0.1312,3806.0,3805.8,2.6275104]
[1760721240478,0.1557,3805.9,3804.6,3.09159469]
[1760721240676,0.1557,3805.9,3805.8,2.62756844]
[1760721240899,0.1557,3805.9,3805.7,2.6276314]
[1760721241104,0.1312,3805.7,3805.6,2.62768526]
[1760721241304,0.1312,3805.7,3805.1,0.1312]
[1760721241488,0.1312,3805.7,3805.1,0.349]
[1760721241808,0.1312,3805.7,3805.1,2.75925051]
[1760721242007,0.1312,3805.7,3805.1,0.1312]
[1760721242208,1.76084633,3805.6,3804.9,0.001]
[1760721242510,0.03284719,3805.5,3804.9,0.001]
[1760721242803,1.728,3805.3,3804.9,0.001]
[1760721243011,2.62786524,3805.4,3804.9,0.001]
[1760721243220,2.72754247,3805.3,3804.9,0.001]
[1760721243374,0.5355319,3805.2,3804.9,0.001]
[1760721243882,1.728,3805.0,3804.9,0.001]
[1760721244484,1.728,3805.0,3804.9,2.62918996]
[1760721244731,0.04580743,3805.2,3805.1,2.62805182]
[1760721244894,0.04580743,3805.2,3804.9,0.001]
[1760721245212,0.04580743,3805.2,3805.0,2.62810864]
[1760721245384,0.04580743,3805.2,3805.1,2.62805182]
[1760721245587,0.04580743,3805.2,3804.9,0.001]
[1760721245914,0.04580743,3805.2,3804.9,2.62917236]
[1760721246113,0.04580743,3805.2,3805.0,2.62811526]
[1760721246314,0.04580743,3805.2,3804.9,2.62916491]
[1760721246517,0.04580743,3805.2,3805.1,2.62805182]
[1760721247194,1.728,3805.6,3805.0,2.62806646]
[1760721247405,2.45184427,3805.6,3805.0,2.62812089]
[1760721247714,2.45184427,3805.6,3804.9,0.001]
[1760721247715,0.72384427,3805.6,3804.9,0.001]
[1760721247894,0.1557,3805.8,3805.3,2.62791244]
[1760721248286,0.1557,3805.8,3805.2,2.627966]
[1760721248604,2.62764623,3805.7,3804.9,0.001]
[1760721248807,2.62764623,3805.7,3805.1,2.62803975]
[1760721249004,2.62764623,3805.7,3804.9,0.001]
[1760721249005,2.45183882,3805.7,3804.9,0.001]
[1760721249210,2.45183882,3805.7,3805.2,2.62794106]
[1760721249211,0.72583882,3805.7,3805.2,2.62794106]
[1760721249411,0.72583882,3805.7,3805.3,2.62791318]
[1760721249612,0.75868428,3805.7,3805.0,2.62810157]
[1760721249782,0.75868428,3805.7,3805.1,2.6280418]
[1760721249783,0.62658982,3805.6,3805.1,2.6280418]
[1760721250118,0.67239329,3805.6,3805.0,2.62809437]
[1760721250322,2.62790405,3805.4,3804.9,0.001]
[1760721250524,3.20051644,3805.6,3805.1,2.62800686]
[1760721250525,0.57279329,3805.6,3805.1,2.62800686]
[1760721250714,0.04580347,3805.6,3805.3,2.62785215]
[1760721251731,0.04580347,3805.6,3805.0,2.62810876]
[1760721251889,0.04580347,3805.6,3805.0,2.62806534]
[1760721252085,1.728,3805.5,3805.0,2.62811365]
[1760721252333,0.13244805,3805.4,3804.9,0.001]
[1760721252535,0.29042515,3805.4,3804.9,0.001]
[1760721252692,0.19082515,3805.4,3804.9,0.001]
[1760721252888,2.62784697,3805.4,3804.9,0.001]
[1760721253105,2.62789262,3805.4,3804.9,0.001]
[1760721253300,1.728,3805.3,3804.9,0.001]
[1760721253501,0.04580347,3805.6,3805.0,2.62807125]
[1760721253689,4.40152183,3805.6,3805.0,2.62812089]
[1760721254012,4.40152183,3805.6,3804.9,0.464]
[1760721254013,0.71867927,3805.5,3805.2,2.6279258]
[1760721254208,0.1312,3805.2,3805.1,2.62802627]
[1760721254408,0.1312,3805.2,3805.1,2.86052627]
[1760721254599,0.1312,3805.2,3805.1,3.32352627]
[1760721254799,0.1312,3805.5,3805.1,0.6955]
[1760721255029,0.1312,3805.5,3805.1,0.2325]
[1760721255320,0.0786498,3805.6,3804.9,0.001]
[1760721255521,2.75918279,3805.2,3804.9,0.001]
[1760721255706,2.62785315,3805.4,3804.9,0.001]
[1760721255907,1.827,3805.5,3804.9,0.001]
[1760721256122,1.728,3805.1,3804.9,0.001]
[1760721256327,4.35612089,3805.0,3804.9,0.001]
[1760721256622,5.34081192,3805.0,3804.9,0.001]
[1760721257231,2.63330591,3804.7,3804.6,0.001]
[1760721257522,10.82176691,3804.7,3804.6,0.001]
[1760721257839,10.82176691,3804.7,3804.3,0.001]
[1760721257840,15.39942353,3804.6,3804.3,0.001]
[1760721258055,2.63378954,3804.2,3804.1,0.001]
[1760721258253,10.32554754,3804.2,3804.1,0.001]
[1760721258437,10.42514754,3804.2,3804.1,0.001]
[1760721258837,7.78657454,3804.2,3804.1,0.001]
[1760721259458,7.83240525,3804.2,3804.1,0.001]
[1760721259754,9.59667136,3804.2,3804.1,0.001]
[1760721260059,17.30942436,3804.2,3804.1,0.001]
[1760721260553,6.26637039,3804.2,3804.1,0.001]
[1760721260850,6.16677039,3804.2,3804.1,0.001]
[1760721261259,3.53809682,3804.2,3804.1,0.001]
[1760721261554,1.77383071,3804.2,3804.1,0.001]
[1760721261957,1.77383071,3804.2,3804.1,0.218]
[1760721262260,0.04583071,3804.2,3804.1,3.29054267]
[1760721262463,0.002,3805.7,3804.1,3.30360588]
[1760721262773,0.04581371,3804.8,3804.3,2.62860447]
[1760721263067,0.002,3805.7,3805.6,2.62770653]
[1760721263430,0.002,3805.7,3805.6,3.08454384]
[1760721263632,0.002,3806.1,3806.0,2.62743037]
[1760721264039,0.002,3806.1,3806.0,3.07123037]
[1760721264269,0.002,3806.5,3806.4,2.62715426]
[1760721264625,0.002,3806.5,3806.4,3.07095426]
[1760721264860,0.002,3806.5,3806.4,3.08397776]
[1760721265024,0.002,3806.5,3806.4,4.79895426]
[1760721265230,0.002,3806.5,3806.4,5.56327431]
[1760721265632,0.002,3806.5,3806.4,5.69447431]
[1760721267131,0.002,3806.5,3806.4,3.96647431]
[1760721267336,0.002,3806.5,3806.4,3.83527431]
[1760721267733,0.002,3806.5,3806.4,3.84829781]
[1760721267937,0.002,3806.5,3806.4,3.83527431]
[1760721269061,0.002,3806.5,3806.4,3.84829781]
[1760721270153,0.002,3806.5,3806.4,3.83527431]
[1760721271454,0.002,3806.5,3806.4,3.84829781]
[1760721272263,0.002,3806.5,3806.4,3.83527431]
[1760721276239,0.002,3806.5,3806.4,5.57629781]
[1760721276552,0.002,3806.5,3806.4,5.56327431]
[1760721277339,0.002,3806.5,3806.4,5.69447431]
[1760721279945,0.002,3806.5,3806.4,23.86654231]
[1760721280172,0.002,3806.5,3806.4,12.20337631]
[1760721280358,0.002,3806.5,3806.4,9.17047431]
[1760721280557,0.002,3806.5,3806.4,5.69447431]
[1760721280761,0.002,3806.5,3806.4,8.40847431]
[1760721281447,0.002,3806.5,3806.4,8.27727431]
[1760721281763,0.002,3806.5,3806.4,5.56327431]
[1760721281951,0.002,3806.5,3806.4,8.27727431]
[1760721282443,0.002,3806.5,3806.4,5.56327431]
[1760721282644,0.002,3806.5,3806.4,8.27727431]
[1760721282889,0.002,3806.5,3806.4,5.11947431]
[1760721283391,0.002,3806.5,3806.4,2.62715426]
[1760721284258,0.002,3806.5,3806.3,2.62721982]
[1760721284456,0.1011,3806.4,3806.1,0.001]
[1760721284686,0.1011,3806.3,3806.1,0.001]
[1760721284878,0.1011,3806.2,3806.1,2.62836134]
[1760721286988,0.1011,3806.2,3806.1,0.001]
[1760721287160,0.1011,3806.2,3806.1,2.62836134]
[1760721287362,0.002,3806.5,3806.4,2.62715426]
[1760721287754,0.002,3806.5,3806.4,2.64017776]
[1760721287963,0.002,3806.5,3806.4,2.62715426]
[1760721288367,0.002,3806.5,3806.4,2.64017776]
[1760721289107,0.002,3806.5,3806.4,2.62715426]
[1760721289989,0.1036,3806.5,3806.4,2.62715426]
[1760721290300,0.002,3806.5,3806.4,2.62715426]
[1760721290502,0.002,3806.5,3806.1,0.001]
[1760721290503,0.1036,3806.5,3806.1,0.001]
[1760721290674,0.002,3806.5,3806.4,2.62715426]
[1760721291971,0.002,3806.5,3806.4,2.75835426]
[1760721292671,0.1036,3806.5,3806.4,2.62715426]
[1760721293071,0.002,3806.5,3806.4,2.62715426]
[1760721295369,0.1036,3806.5,3806.4,2.62715426]
[1760721296389,0.002,3806.5,3806.4,2.62715426]
[1760721298923,0.1036,3806.5,3806.4,2.62715426]
[1760721299514,0.002,3806.5,3806.4,2.62715426]
[1760721301077,0.002,3806.5,3806.4,3.61483668]
[1760721301300,0.002,3806.5,3806.4,3.73301318]
[1760721301544,0.002,3806.5,3806.4,2.75835426]
[1760721301847,0.002,3806.5,3806.4,0.1312]
[1760721301980,0.002,3806.5,3806.1,0.1322]
[1760721302187,0.002,3806.5,3806.4,2.62715426]
[1760721302521,0.002,3806.5,3806.4,2.77137776]
[1760721302726,0.002,3806.5,3806.4,5.5344055]
[1760721303352,0.002,3806.5,3806.4,2.62715426]
[1760721303916,0.002,3806.5,3806.4,3.08905426]
[1760721304106,0.002,3806.5,3806.4,2.62715426]
[1760721304514,0.002,3806.5,3806.4,3.08905426]
[1760721305942,0.002,3806.5,3806.4,2.62715426]
[1760721306240,0.002,3806.5,3806.4,3.37168315]
[1760721306451,0.002,3806.5,3806.4,3.83358315]
[1760721306614,0.002,3806.5,3806.4,3.37168315]
[1760721306810,0.002,3806.5,3806.4,3.83358315]
[1760721308269,0.002,3806.5,3806.4,3.37168315]
[1760721308433,0.002,3806.5,3806.4,3.83358315]
[1760721308935,0.002,3806.5,3806.4,3.84660665]
[1760721309131,0.002,3806.9,3806.8,2.62687821]
[1760721309341,0.002,3806.9,3806.8,3.16529116]
[1760721309560,0.002,3806.9,3806.8,3.61417456]
[1760721311243,0.002,3806.9,3806.8,3.15227456]
[1760721311638,0.002,3806.9,3806.8,2.62687821]
[1760721311844,0.002,3806.9,3806.8,3.08877821]
[1760721312039,0.002,3806.9,3806.8,3.10179481]
[1760721312263,0.002,3806.9,3806.8,3.08877821]
[1760721312471,0.002,3806.9,3806.8,2.62687821]
[1760721312774,0.002,3806.9,3806.8,3.41497078]
[1760721313146,0.002,3806.9,3806.8,2.62687821]
[1760721313351,0.002,3806.9,3806.8,2.75807821]
[1760721313857,0.002,3806.9,3806.3,1.728]
[1760721313858,0.2585,3806.9,3805.7,0.001]
[1760721314165,0.1595,3806.9,3806.6,2.62700314]
[1760721314330,0.002,3806.9,3806.8,2.62687821]
[1760721314753,0.002,3806.9,3806.8,3.10179481]
[1760721315133,0.002,3806.9,3806.8,2.62687821]
[1760721315341,0.002,3806.9,3806.8,3.08877821]
[1760721315535,0.002,3806.9,3806.8,3.68662638]
[1760721317339,0.002,3806.9,3806.8,5.42764298]
[1760721317558,0.002,3806.9,3806.8,5.41462638]
[1760721318395,0.002,3807.3,3807.2,2.62660222]
[1760721318396,1e-08,3807.3,3807.2,2.62660222]
[1760721318560,1e-08,3807.3,3807.2,3.33775306]
[1760721318758,1e-08,3807.3,3807.2,3.78664336]
[1760721320465,1e-08,3807.3,3807.2,3.32474336]
[1760721320779,1e-08,3807.3,3807.2,5.05274336]
[1760721322692,1e-08,3807.3,3807.2,5.06575306]
[1760721323000,1e-08,3807.3,3807.2,5.49365306]
[1760721323295,1e-08,3807.3,3807.2,5.48064336]
[1760721323907,1e-08,3807.3,3807.2,5.18394336]
[1760721324494,1e-08,3807.3,3807.2,5.61184336]
[1760721326303,1e-08,3807.3,3807.2,11.08984336]
[1760721326472,0.002,3807.7,3807.6,2.62632629]
[1760721326666,0.002,3807.7,3807.6,36.62855276]
[1760721326865,0.002,3807.7,3807.6,41.76499296]
[1760721327097,0.147,3809.8,3809.6,2.6249475]
[1760721327409,0.147,3809.8,3809.6,2.63791583]
[1760721327575,0.2559,3810.0,3809.6,2.6249475]
[1760721327779,0.2559,3810.0,3809.6,2.7561475]
[1760721328185,0.1569,3810.0,3809.6,2.7561475]
[1760721328434,0.1569,3810.0,3809.6,2.76911583]
[1760721328580,0.1312,3810.7,3809.6,3.29426538]
[1760721328909,0.099,3810.4,3809.6,4.89106538]
[1760721329279,0.1564,3809.9,3809.6,4.89106538]
[1760721329721,0.1564,3809.9,3809.6,2.6249475]
[1760721330105,0.1016,3809.7,3808.2,0.4279]
[1760721330414,0.1016,3809.7,3809.6,2.6249475]
[1760721330617,0.002,3809.7,3809.6,2.6249475]
[1760721330988,0.1016,3809.7,3809.6,2.6249475]
[1760721331312,0.002,3809.7,3809.6,2.6249475]
[1760721331883,0.1016,3809.7,3809.6,2.6249475]
[1760721333008,0.1016,3809.7,3808.8,2.62549884]
[1760721333228,0.1016,3809.7,3809.6,2.6249475]
[1760721333423,0.1016,3809.7,3808.9,0.70624988]
[1760721333621,0.1016,3809.7,3808.6,1.728]
[1760721333622,0.1016,3809.7,3809.6,2.6249475]
[1760721334228,0.1016,3809.7,3808.4,1.728]
[1760721334428,0.1016,3809.7,3809.5,2.62498926]
[1760721334627,0.0996,3809.6,3809.4,2.62507684]
[1760721334806,0.0996,3809.5,3809.4,2.62507684]
[1760721335612,0.0996,3809.5,3808.5,1.728]
[1760721335613,0.0996,3809.5,3809.3,2.62514889]
[1760721335811,0.002,3809.7,3807.4,0.4279]
[1760721335812,0.0996,3809.4,3807.4,0.4279]
[1760721336041,0.1486,3809.3,3806.7,2.86327912]
[1760721336339,1.8271,3809.2,3806.7,0.6643]
[1760721336512,18.15301578,3808.8,3806.7,0.2364]
[1760721336863,18.15301578,3808.8,3806.2,0.4279]
[1760721336864,0.1608,3807.2,3807.1,2.62767121]
[1760721338639,0.2604,3807.2,3807.1,0.001]
[1760721338840,0.3916,3807.2,3807.1,0.001]
[1760721339024,2.1196,3807.2,3807.1,0.001]
[1760721339206,4.95816222,3807.2,3807.1,0.001]
[1760721339405,5.0039506,3807.2,3807.1,0.001]
[1760721339635,24.96208863,3807.2,3807.1,0.001]
[1760721339855,24.96208863,3807.2,3805.7,0.001]
[1760721339856,13.66474721,3806.9,3805.7,0.001]
[1760721340061,4.35471923,3807.1,3805.7,0.001]
[1760721340062,2.62756844,3805.8,3805.7,0.001]
[1760721340345,4.35584464,3805.4,3804.1,0.001]
[1760721340549,1.728,3805.4,3804.1,0.2225]
[1760721340757,1.77381146,3805.4,3804.3,0.4279]
[1760721340924,0.0992,3805.8,3804.1,0.2225]
[1760721340925,0.049,3805.9,3805.2,0.2215]
[1760721341128,0.045786,3806.0,3805.9,2.6274994]
[1760721341319,0.045786,3806.0,3805.3,0.71395356]
[1760721341662,0.045786,3806.0,3805.3,0.28605356]
[1760721341863,0.045786,3806.0,3805.3,0.001]
[1760721342027,0.045786,3806.0,3805.8,2.62754813]
[1760721342334,0.045786,3806.0,3805.3,0.001]
[1760721342335,0.1477,3805.9,3805.3,0.001]
[1760721343241,0.0492,3805.9,3805.3,0.001]
[1760721343428,0.49422873,3805.9,3805.4,2.62778192]
[1760721343635,0.0492,3805.9,3805.5,2.62770743]
[1760721344157,0.0492,3805.9,3805.6,2.62770608]
[1760721344458,0.0492,3805.9,3805.3,0.001]
[1760721344832,0.045786,3806.0,3805.6,2.62766268]
[1760721345150,0.0492,3805.9,3805.3,0.001]
[1760721345349,0.0492,3805.9,3805.7,2.62758288]
[1760721345543,0.0492,3805.9,3805.6,2.62769906]
[1760721345753,0.0492,3805.9,3805.3,0.001]
[1760721345956,0.099,3805.8,3805.3,0.001]
[1760721346357,0.0492,3805.9,3805.3,2.62890795]
[1760721346654,0.0492,3805.9,3805.4,2.62782865]
[1760721346838,0.0492,3805.9,3805.4,2.62784464]
[1760721347162,0.41585646,3805.9,3805.3,0.001]
[1760721347378,0.099,3805.8,3805.3,0.001]
[1760721347543,0.0492,3805.9,3805.3,0.001]
[1760721347754,0.1553,3806.3,3805.8,2.62751886]
[1760721348056,0.1553,3806.7,3806.2,2.6272907]
[1760721348272,0.099,3806.6,3805.4,0.4279]
[1760721348573,0.099,3806.6,3805.9,2.62745537]
[1760721348574,1.827,3806.6,3805.9,2.62745537]
[1760721348773,2.62723529,3806.3,3805.5,2.62771406]
[1760721349087,0.0492,3805.6,3805.3,0.001]
[1760721349389,1.827,3806.5,3805.3,0.001]
[1760721349681,0.19823,3806.4,3806.0,2.62742712]
[1760721349899,0.1312,3806.3,3806.2,2.62729231]
[1760721350054,0.1312,3806.3,3805.9,2.62743586]
[1760721350253,0.1312,3806.3,3806.0,2.62742141]
[1760721350564,0.1312,3806.3,3805.7,0.1312]
[1760721350764,0.1312,3806.0,3805.8,2.62755576]
[1760721351006,0.0492,3805.9,3805.3,0.001]
[1760721351315,0.1312,3805.8,3805.3,0.001]
[1760721351489,0.099,3805.8,3805.3,0.001]
[1760721351658,0.1312,3805.4,3805.3,2.62891369]
[1760721351859,0.1312,3805.4,3805.3,0.001]
[1760721352782,0.1312,3805.4,3805.3,2.62891369]
[1760721353087,0.099,3806.6,3805.3,0.4413]
[1760721353285,0.1312,3805.9,3805.3,0.5725]
[1760721353586,0.1312,3805.9,3805.7,2.62759554]
[1760721353794,0.1804,3805.9,3805.4,2.62779379]
[1760721354106,0.2794,3805.9,3805.4,2.62784035]
[1760721354288,0.2794,3805.9,3805.3,2.76010933]
[1760721354474,0.1804,3805.9,3805.4,2.62784464]
[1760721354788,0.1804,3805.9,3805.5,2.62771556]
[1760721354991,0.1804,3805.9,3805.6,2.62770577]
[1760721355287,2.90691013,3805.9,3805.3,0.1322]
[1760721355588,0.29069101,3805.8,3805.3,0.001]
[1760721355793,2.62758549,3805.8,3805.3,0.001]
[1760721355993,1.728,3805.7,3805.3,0.001]
[1760721356290,2.72664051,3805.7,3805.3,0.001]
[1760721356478,4.35584464,3805.4,3805.3,0.001]
[1760721356683,1.728,3805.4,3805.3,0.001]
[1760721356979,0.0492,3805.9,3805.4,2.6278363]
[1760721357185,0.31685732,3805.9,3805.4,2.6278363]
[1760721357394,0.31685732,3805.9,3805.3,0.001]
[1760721357395,1.728,3805.8,3805.3,0.001]
[1760721357603,1.728,3805.8,3805.3,2.62890509]
[1760721357759,2.9443819,3805.9,3805.3,2.62890509]
[1760721357760,2.94440544,3805.9,3805.3,0.001]
[1760721358097,0.32728514,3805.8,3805.3,0.001]
[1760721358300,0.0492,3805.9,3805.3,0.001]
[1760721358301,0.1482,3805.9,3805.3,0.001]
[1760721358489,0.099,3805.8,3805.3,0.001]
[1760721358686,2.62781923,3805.5,3805.3,0.001]
[1760721358880,0.0492,3805.9,3805.3,0.001]
[1760721359202,1.728,3805.6,3805.3,0.001]
[1760721359377,0.4355656,3805.5,3805.3,2.62889434]
[1760721359712,0.0492,3805.9,3805.3,2.62889434]
[1760721359713,2.62758374,3805.8,3805.3,0.001]
[1760721360209,1.728,3805.6,3805.3,0.001]
[1760721360373,0.099,3805.7,3805.3,0.001]
[1760721360573,1.728,3805.8,3805.3,0.001]
[1760721361187,1.8762,3805.9,3805.3,0.001]
[1760721361394,2.62784464,3805.4,3805.3,0.001]
[1760721361777,0.099,3805.7,3805.3,0.001]
[1760721362005,2.62777558,3805.5,3805.3,0.001]
[1760721362305,2.66069269,3805.4,3805.3,0.001]
[1760721362508,5.02643291,3805.4,3805.3,0.001]
[1760721362815,4.99358486,3805.4,3805.3,0.001]
[1760721363111,2.26674022,3805.4,3805.3,0.001]
[1760721363805,1.728,3805.4,3805.3,0.001]
[1760721364692,1.827,3805.4,3805.3,0.001]
[1760721364897,1.728,3805.4,3805.3,0.001]
[1760721365704,0.0492,3805.9,3805.4,2.62778048]
[1760721365903,1.7772,3805.9,3805.3,0.001]
[1760721366104,2.62763749,3805.7,3805.3,0.001]
[1760721366474,2.72676938,3805.6,3805.3,0.001]
[1760721366674,2.72672917,3805.6,3805.3,0.001]
[1760721366876,4.35584464,3805.4,3805.3,0.001]
[1760721367376,4.45484464,3805.4,3805.3,0.001]
[1760721367573,5.16310546,3805.4,3805.3,0.001]
[1760721367772,2.43626082,3805.4,3805.3,0.001]
[1760721367976,1.728,3805.4,3805.3,0.001]
[1760721368405,4.35564969,3805.7,3805.3,0.001]
[1760721368572,1.728,3805.7,3805.3,0.001]
[1760721368979,0.17772,3805.8,3805.3,0.001]
[1760721369209,2.67670339,3805.9,3805.3,2.6289098]
[1760721369710,0.0492,3805.9,3805.3,0.001]
[1760721369916,0.1553,3806.7,3805.4,0.4643]
[1760721370078,0.1547,3806.9,3805.5,0.01303211]
[1760721370278,0.1547,3806.9,3806.4,2.62714735]
[1760721370489,0.27814966,3806.8,3806.4,2.62714735]
[1760721370685,1.8827,3806.9,3806.4,2.62714735]
[1760721370906,0.1547,3806.9,3806.5,2.62707531]
[1760721371114,0.1608,3807.2,3806.5,2.62707531]
[1760721371115,0.1608,3807.2,3806.6,2.62696623]
[1760721371416,0.1016,3807.7,3806.6,2.62696623]
[1760721371417,0.1622,3807.7,3806.7,2.62694722]
[1760721371621,0.1622,3807.7,3807.6,2.62632629]
[1760721371622,0.002,3807.7,3807.6,2.62632629]
[1760721371925,0.002,3807.7,3807.6,3.10362909]
[1760721372081,0.002,3807.7,3807.6,0.4643]
[1760721372286,0.002,3807.7,3807.5,2.62634835]
[1760721372485,0.002,3807.7,3807.6,2.62632629]
[1760721372717,0.002,3807.7,3807.1,0.226]
[1760721372880,0.1016,3807.7,3806.5,0.226]
[1760721373088,0.0996,3807.6,3806.2,0.226]
[1760721373320,1.728,3807.3,3806.0,0.226]
[1760721373500,0.18276,3807.2,3806.1,2.62736134]
[1760721373809,0.03283339,3807.1,3806.0,0.226]
[1760721374012,0.03283339,3807.1,3804.4,3.02550187]
[1760721374013,0.1542,3806.1,3805.2,0.226]
[1760721374199,15.3566324,3806.9,3805.2,0.226]
[1760721374200,0.1001,3806.5,3805.2,0.226]
[1760721374387,0.1536,3806.4,3805.5,2.62777558]
[1760721374594,2.78080426,3806.4,3805.6,2.62770653]
[1760721374794,0.54078269,3806.3,3805.7,2.62763705]
[1760721374994,0.54078269,3806.3,3805.6,2.62769329]
[1760721375218,0.54078269,3806.3,3805.7,2.62762632]
[1760721375427,2.62706743,3806.6,3805.4,0.4643]
[1760721375599,2.62706743,3806.6,3805.8,2.62751297]
[1760721375919,2.62701623,3806.6,3805.8,2.62756471]
[1760721376215,2.62703698,3806.6,3805.9,2.6274985]
[1760721376415,1.728,3806.5,3805.9,2.6274985]
[1760721376602,0.1312,3805.9,3805.8,2.6275578]
[1760721376918,0.1312,3806.2,3805.9,2.62748677]
[1760721377222,0.1312,3806.2,3805.5,0.1312]
[1760721377430,0.1312,3806.2,3805.4,0.4643]
[1760721377431,1.728,3807.4,3806.1,2.85334028]
[1760721377582,0.1312,3806.4,3806.1,2.85334028]
[1760721377784,0.1312,3806.4,3806.1,0.226]
[1760721377989,1.9810032,3807.3,3806.6,2.62696512]
[1760721378208,0.1312,3806.7,3806.6,2.62701623]
[1760721378716,0.1312,3806.7,3806.1,2.98451272]
[1760721378926,0.03283684,3806.7,3805.7,0.4643]
[1760721379130,0.1312,3806.4,3806.0,2.62742491]
[1760721379541,0.1312,3806.4,3805.7,0.5955]
[1760721379713,0.1312,3806.4,3806.1,2.62735686]
[1760721380043,4.3544174,3807.5,3806.1,2.62735686]
[1760721380044,0.099,3808.3,3806.2,0.70332695]
[1760721380211,0.1312,3807.0,3806.7,2.62689048]
[1760721380410,0.1312,3807.0,3806.7,2.58110448]
[1760721380640,0.1312,3807.0,3806.3,0.1312]
[1760721380840,0.002,3807.7,3806.1,0.1312]
[1760721380841,0.1312,3806.7,3806.1,0.1312]
[1760721381040,0.1312,3806.7,3806.1,2.98455926]
[1760721381338,0.1312,3806.7,3806.2,3.09159231]
[1760721381638,0.1312,3806.7,3806.1,0.3572]
[1760721381843,15.5114324,3806.8,3805.3,0.001]
[1760721382045,4.40554464,3805.4,3805.3,0.001]
[1760721382213,4.43839269,3805.4,3805.3,0.001]
[1760721382411,15.54258264,3805.4,3805.3,0.001]
[1760721382832,15.54739466,3805.4,3805.3,0.001]
[1760721383212,13.13101164,3805.4,3805.3,0.001]
[1760721383437,4.41017953,3805.4,3805.3,0.001]
[1760721383642,1.77381955,3805.4,3805.3,0.001]
[1760721383841,0.04581955,3805.4,3805.3,0.001]
[1760721384140,0.04581955,3805.4,3805.3,3.08811369]
[1760721384710,0.099,3807.4,3806.1,2.627359]
[1760721384909,2.62707335,3806.6,3805.8,0.2304]
[1760721385134,0.26270733,3806.5,3805.8,0.2304]
[1760721385332,2.78063091,3806.8,3806.0,2.62739867]
[1760721385541,0.1537,3806.8,3805.8,0.2304]
[1760721385730,4.35481103,3806.9,3806.1,2.62732739]
[1760721385936,1.728,3806.7,3806.1,2.62732739]
[1760721387144,1.728,3806.7,3805.8,0.2304]
[1760721387336,2.62696519,3806.7,3805.8,2.85790176]
[1760721387531,0.04579689,3806.5,3805.8,0.2304]
[1760721387734,2.62716161,3806.4,3805.5,2.62772756]
[1760721387935,0.52999151,3806.4,3805.2,0.6896]
[1760721388135,2.6272926,3806.2,3805.2,0.2304]
[1760721388437,1.728,3806.3,3805.3,3.08805037]
[1760721388636,3.12031989,3806.3,3805.4,2.62784044]
[1760721388942,0.49308176,3806.3,3805.3,3.08808589]
[1760721389149,0.04580211,3806.1,3805.5,2.6277272]
[1760721389348,0.04580211,3806.1,3805.3,0.4602]
[1760721389851,0.03284287,3806.0,3805.3,0.001]
[1760721390146,0.1001,3806.0,3805.3,0.001]
[1760721390348,2.62783857,3805.5,3805.3,0.001]
[1760721390550,0.26278386,3805.4,3805.3,0.001]
[1760721390848,2.92347655,3805.4,3805.3,0.001]
[1760721391049,0.30859221,3805.4,3805.3,0.001]
[1760721391347,0.72081018,3805.4,3805.3,0.001]
[1760721391747,0.45802632,3805.4,3805.3,0.001]
[1760721393153,0.04580835,3805.4,3805.3,3.10115618]
[1760721393374,2.62611321,3808.0,3805.3,3.10115618]
[1760721393375,15.3586324,3807.7,3806.6,2.62697147]
[1760721393574,0.0457966,3806.4,3806.0,0.1312]
[1760721393774,0.0457966,3806.4,3806.3,2.62722328]
[1760721393974,0.1312,3806.7,3806.6,2.62701623]
[1760721394279,0.1312,3806.7,3806.3,0.4592]
[1760721394280,0.1312,3806.7,3806.5,2.6270638]
[1760721394442,0.17699208,3806.7,3806.5,2.6270638]
[1760721394643,0.17699208,3806.7,3806.5,0.4592]
[1760721394844,0.17699208,3806.7,3806.1,2.85773728]
[1760721395046,0.0328377,3806.6,3805.8,0.2304]
[1760721395246,0.04579208,3806.7,3806.0,2.62743037]
[1760721395446,0.04579208,3806.7,3806.1,0.2304]
[1760721395671,0.04579208,3806.7,3806.1,3.31694672]
[1760721395872,0.26746819,3806.6,3805.8,0.2304]
[1760721396046,0.002,3806.9,3806.2,2.62729129]